[Event "***Titled Tuesday 3|2 Blitz"]
[Site "Chess.com"]
[Date "2017.02.07"]
[Round "5"]
[White "avto24"]
[Black "Generalas"]
[Result "1-0"]
[WhiteElo "2375"]
[BlackElo "2186"]
[TimeControl "180+2"]
[EndTime "14:11:19 PST"]
[Termination "avto24 won by resignation"]

1. e4 {[%clk 0:03:02]} 1... e5 {[%clk 0:03:00.1]} 2. Nf3 {[%clk 0:03:01.7]} 2...
Nc6 {[%clk 0:03:00.1]} 3. Bc4 {[%clk 0:03:02.6]} 3... Nf6 {[%clk 0:03:00.1]} 4.
Ng5 {[%clk 0:03:03.1]} 4... d5 {[%clk 0:03:00.5]} 5. exd5 {[%clk 0:03:04.3]}
5... Na5 {[%clk 0:02:58.6]} 6. Bb5+ {[%clk 0:03:05.6]} 6... c6 {[%clk
0:02:59.7]} 7. dxc6 {[%clk 0:03:07.5]} 7... bxc6 {[%clk 0:03:00.7]} 8. Bd3
{[%clk 0:03:09.2]} 8... Be7 {[%clk 0:02:49.7]} 9. Nc3 {[%clk 0:03:09.3]} 9...
Nd5 {[%clk 0:02:39.2]} 10. Nf3 {[%clk 0:03:09.1]} 10... Qc7 {[%clk 0:02:25.6]}
11. O-O {[%clk 0:03:01.3]} 11... O-O {[%clk 0:02:23.1]} 12. Re1 {[%clk
0:03:02.2]} 12... f6 {[%clk 0:02:22]} 13. Bf1 {[%clk 0:03:02.9]} 13... Bg4
{[%clk 0:02:20.7]} 14. d3 {[%clk 0:03:03.3]} 14... Rad8 {[%clk 0:02:19.3]} 15.
h3 {[%clk 0:03:03.3]} 15... Bh5 {[%clk 0:02:19.4]} 16. Ne4 {[%clk 0:03:04]}
16... c5 {[%clk 0:02:16.5]} 17. Ng3 {[%clk 0:03:01.9]} 17... Bg6 {[%clk
0:02:11.6]} 18. Bd2 {[%clk 0:02:55.6]} 18... c4 {[%clk 0:02:06.3]} 19. d4 {[%clk
0:02:47.7]} 19... c3 {[%clk 0:02:02.6]} 20. bxc3 {[%clk 0:02:42]} 20... Nxc3
{[%clk 0:02:03.6]} 21. Bxc3 {[%clk 0:02:35.9]} 21... Qxc3 {[%clk 0:02:05.5]} 22.
Re3 {[%clk 0:02:36.8]} 22... Qxc2 {[%clk 0:02:01.2]} 23. Qxc2 {[%clk 0:02:37]}
23... Bxc2 {[%clk 0:02:01.1]} 24. dxe5 {[%clk 0:02:37.4]} 24... f5 {[%clk
0:01:54.8]} 25. Rc3 {[%clk 0:02:34.4]} 25... Ba4 {[%clk 0:01:46.4]} 26. Rac1
{[%clk 0:02:28]} 26... Bd7 {[%clk 0:01:04]} 27. Rc7 {[%clk 0:02:18.7]} 27... Ba3
{[%clk 0:00:38.6]} 28. Rd1 {[%clk 0:02:19]} 28... Be6 {[%clk 0:00:34.8]} 29.
Rxd8 {[%clk 0:02:19.7]} 29... Rxd8 {[%clk 0:00:34.9]} 30. Rxa7 {[%clk
0:02:21.3]} 30... Bb4 {[%clk 0:00:34.4]} 31. Ng5 {[%clk 0:02:17.6]} 31... Bxa2
{[%clk 0:00:31.8]} 32. Nxf5 {[%clk 0:02:18.1]} 32... h6 {[%clk 0:00:09.5]} 33.
Rxg7+ {[%clk 0:02:17.6]} 33... Kh8 {[%clk 0:00:10.4]} 34. Nf7+ {[%clk
0:02:13.3]} 34... Bxf7 {[%clk 0:00:10.3]} 35. Rxf7 {[%clk 0:02:14.6]} 35... Rf8
{[%clk 0:00:11.3]} 36. Rxf8+ {[%clk 0:02:09.5]} 36... Bxf8 {[%clk 0:00:13.2]}
37. f4 {[%clk 0:02:10.2]} 37... Nc6 {[%clk 0:00:12.9]} 38. g3 {[%clk 0:02:09.8]}
38... Kh7 {[%clk 0:00:10.9]} 39. Bd3 {[%clk 0:02:09.8]} 39... Kg8 {[%clk
0:00:11.6]} 40. Kg2 {[%clk 0:02:10]} 40... Kf7 {[%clk 0:00:12.5]} 41. Bc4+
{[%clk 0:02:10.6]} 41... Kg6 {[%clk 0:00:13.5]} 42. g4 {[%clk 0:02:11.6]} 42...
Ne7 {[%clk 0:00:11.8]} 43. Nxe7+ {[%clk 0:02:11.7]} 43... Bxe7 {[%clk
0:00:12.5]} 44. Kg3 {[%clk 0:02:13.1]} 44... h5 {[%clk 0:00:12.7]} 45. f5+
{[%clk 0:02:11]} 45... Kg7 {[%clk 0:00:04.1]} 46. f6+ {[%clk 0:02:09.2]} 46...
Bxf6 {[%clk 0:00:04.3]} 47. exf6+ {[%clk 0:02:11.1]} 47... Kxf6 {[%clk
0:00:05.9]} 48. Kf4 {[%clk 0:02:12]} 48... Kg6 {[%clk 0:00:06.5]} 49. g5 {[%clk
0:02:13.1]} 1-0

[Event "***Titled Tuesday 3|2 Blitz"]
[Site "Chess.com"]
[Date "2017.02.07"]
[Round "5"]
[White "hansen"]
[Black "GM_dmitrij"]
[Result "1-0"]
[WhiteElo "2636"]
[BlackElo "2474"]
[TimeControl "180+2"]
[EndTime "14:11:21 PST"]
[Termination "hansen won by checkmate"]

1. e4 {[%clk 0:03:02]} 1... e5 {[%clk 0:03:00.1]} 2. Nf3 {[%clk 0:03:02.2]} 2...
Nc6 {[%clk 0:02:59.9]} 3. Bb5 {[%clk 0:03:03.2]} 3... a6 {[%clk 0:02:58.2]} 4.
Ba4 {[%clk 0:03:03.4]} 4... Nf6 {[%clk 0:02:59.1]} 5. O-O {[%clk 0:03:04.2]}
5... Bc5 {[%clk 0:02:58.1]} 6. c3 {[%clk 0:03:00.8]} 6... b5 {[%clk 0:02:58.8]}
7. Bc2 {[%clk 0:03:00.9]} 7... d5 {[%clk 0:02:59.8]} 8. a4 {[%clk 0:02:46.8]}
8... dxe4 {[%clk 0:02:59]} 9. axb5 {[%clk 0:02:41.4]} 9... exf3 {[%clk
0:02:56.3]} 10. Qxf3 {[%clk 0:02:41.6]} 10... e4 {[%clk 0:02:56.9]} 11. Bxe4
{[%clk 0:02:42]} 11... Ne5 {[%clk 0:02:51.1]} 12. Qe2 {[%clk 0:02:42.1]} 12...
O-O {[%clk 0:02:51.6]} 13. d4 {[%clk 0:02:42.3]} 13... Bg4 {[%clk 0:02:49.2]}
14. Qc2 {[%clk 0:02:20.3]} 14... Nxe4 {[%clk 0:02:50]} 15. Qxe4 {[%clk
0:02:20.8]} 15... Nf3+ {[%clk 0:02:51.3]} 16. gxf3 {[%clk 0:02:15.6]} 16... Bh3
{[%clk 0:02:52.3]} 17. dxc5 {[%clk 0:01:38.2]} 17... Bxf1 {[%clk 0:02:53.3]} 18.
Kxf1 {[%clk 0:01:36.4]} 18... Qd1+ {[%clk 0:02:54]} 19. Qe1 {[%clk 0:01:22.4]}
19... Qxf3 {[%clk 0:02:55]} 20. Be3 {[%clk 0:01:16.6]} 20... axb5 {[%clk
0:02:54.9]} 21. Rxa8 {[%clk 0:01:13.7]} 21... Rxa8 {[%clk 0:02:55.9]} 22. Nd2
{[%clk 0:01:14.5]} 22... Qh1+ {[%clk 0:02:56.7]} 23. Ke2 {[%clk 0:01:15.7]}
23... Qxh2 {[%clk 0:02:58.1]} 24. Nf3 {[%clk 0:00:57.7]} 24... Qh3 {[%clk
0:02:59.1]} 25. Qd1 {[%clk 0:00:54.5]} 25... Qe6 {[%clk 0:02:45.1]} 26. Qd3
{[%clk 0:00:39.9]} 26... Qc4 {[%clk 0:02:30.8]} 27. Ne5 {[%clk 0:00:37.2]} 27...
Qxd3+ {[%clk 0:02:27]} 28. Kxd3 {[%clk 0:00:34.6]} 28... h5 {[%clk 0:02:27.4]}
29. Nc6 {[%clk 0:00:26.8]} 29... Re8 {[%clk 0:01:57.2]} 30. Bf4 {[%clk
0:00:24.4]} 30... f6 {[%clk 0:01:45.9]} 31. Bxc7 {[%clk 0:00:24.9]} 31... Kf7
{[%clk 0:01:43.3]} 32. Nd4 {[%clk 0:00:20.8]} 32... h4 {[%clk 0:01:38.2]} 33. c6
{[%clk 0:00:21]} 33... Rc8 {[%clk 0:01:36.7]} 34. Bh2 {[%clk 0:00:21.5]} 34...
g5 {[%clk 0:01:35]} 35. c7 {[%clk 0:00:22.2]} 35... g4 {[%clk 0:01:31.8]} 36.
Nxb5 {[%clk 0:00:22.2]} 36... Ke6 {[%clk 0:01:14.6]} 37. Bf4 {[%clk 0:00:18.8]}
37... Kf5 {[%clk 0:01:08.4]} 38. Nd6+ {[%clk 0:00:15.2]} 38... Kxf4 {[%clk
0:01:06.8]} 39. Nxc8 {[%clk 0:00:16.8]} 39... h3 {[%clk 0:01:08.2]} 40. Ne7
{[%clk 0:00:13.3]} 40... h2 {[%clk 0:01:07.2]} 41. c8=Q {[%clk 0:00:14.6]} 41...
h1=Q {[%clk 0:01:07.8]} 42. Qf5# {[%clk 0:00:16.2]} 1-0

[Event "***Titled Tuesday 3|2 Blitz"]
[Site "Chess.com"]
[Date "2017.02.07"]
[Round "5"]
[White "Janosik"]
[Black "Astaneh"]
[Result "0-1"]
[WhiteElo "2612"]
[BlackElo "2505"]
[TimeControl "180+2"]
[EndTime "14:11:45 PST"]
[Termination "Astaneh won by resignation"]

1. d4 {[%clk 0:02:38]} 1... Nf6 {[%clk 0:03:00.2]} 2. c4 {[%clk 0:02:39.4]} 2...
g6 {[%clk 0:03:01.6]} 3. g3 {[%clk 0:02:40.1]} 3... Bg7 {[%clk 0:03:02.7]} 4.
Bg2 {[%clk 0:02:41.6]} 4... O-O {[%clk 0:03:03.6]} 5. Nc3 {[%clk 0:02:42.8]}
5... c6 {[%clk 0:03:02.1]} 6. Nf3 {[%clk 0:02:44]} 6... d5 {[%clk 0:03:03.4]} 7.
cxd5 {[%clk 0:02:44]} 7... cxd5 {[%clk 0:03:04.9]} 8. Ne5 {[%clk 0:02:44.7]}
8... Ng4 {[%clk 0:02:45.7]} 9. Nxg4 {[%clk 0:02:25.8]} 9... Bxg4 {[%clk
0:02:46.5]} 10. Nxd5 {[%clk 0:02:27.4]} 10... Nc6 {[%clk 0:02:12.5]} 11. Ne3
{[%clk 0:02:26.9]} 11... Bd7 {[%clk 0:02:08.3]} 12. d5 {[%clk 0:02:21.4]} 12...
Nd4 {[%clk 0:02:09.3]} 13. O-O {[%clk 0:02:21.6]} 13... Bb5 {[%clk 0:02:10.6]}
14. Re1 {[%clk 0:02:19.7]} 14... Rc8 {[%clk 0:02:11.8]} 15. Bd2 {[%clk
0:02:13.8]} 15... Qb6 {[%clk 0:02:11.4]} 16. Bc3 {[%clk 0:02:07.3]} 16... Rfd8
{[%clk 0:02:04.8]} 17. Rc1 {[%clk 0:01:56]} 17... e5 {[%clk 0:01:55.4]} 18. Qd2
{[%clk 0:01:39.9]} 18... Bh6 {[%clk 0:01:52.6]} 19. Kh1 {[%clk 0:00:56.2]} 19...
Re8 {[%clk 0:01:20.2]} 20. Bh3 {[%clk 0:00:48.4]} 20... f5 {[%clk 0:01:20.4]}
21. Bg2 {[%clk 0:00:47.8]} 21... Kg7 {[%clk 0:01:06.6]} 22. f4 {[%clk
0:00:47.4]} 22... Kg8 {[%clk 0:01:00.3]} 23. fxe5 {[%clk 0:00:44.6]} 23... Nxe2
{[%clk 0:00:58.6]} 24. d6 {[%clk 0:00:28.8]} 24... Bxe3 {[%clk 0:00:51.3]} 25.
Qd5+ {[%clk 0:00:29.9]} 25... Kg7 {[%clk 0:00:50.8]} 26. d7 {[%clk 0:00:19.6]}
26... Nxc3 {[%clk 0:00:41.6]} 27. dxc8=Q {[%clk 0:00:17.3]} 27... Nxd5 {[%clk
0:00:38]} 28. Qc2 {[%clk 0:00:18.3]} 28... Bxc1 {[%clk 0:00:32.4]} 29. Qxc1
{[%clk 0:00:20.2]} 29... Nb4 {[%clk 0:00:28.4]} 30. e6 {[%clk 0:00:20.3]} 30...
Nd3 {[%clk 0:00:29.4]} 31. Qc3+ {[%clk 0:00:20.7]} 31... Kh6 {[%clk 0:00:18.8]}
32. h4 {[%clk 0:00:18.6]} 32... Rxe6 {[%clk 0:00:12.9]} 33. Qd2+ {[%clk
0:00:17.8]} 33... Kg7 {[%clk 0:00:13.9]} 34. Qc3+ {[%clk 0:00:19.3]} 34... Kh6
{[%clk 0:00:13]} 35. Qd2+ {[%clk 0:00:20.3]} 35... f4 {[%clk 0:00:14.7]} 36. Qc3
{[%clk 0:00:22.2]} 36... Rxe1+ {[%clk 0:00:15.5]} 0-1

[Event "***Titled Tuesday 3|2 Blitz"]
[Site "Chess.com"]
[Date "2017.02.07"]
[Round "5"]
[White "AdrianaNikolova"]
[Black "Pierrebl"]
[Result "0-1"]
[WhiteElo "2313"]
[BlackElo "2399"]
[TimeControl "180+2"]
[EndTime "14:12:17 PST"]
[Termination "Pierrebl won on time"]

1. e4 {[%clk 0:03:01.9]} 1... c5 {[%clk 0:02:49.1]} 2. Nf3 {[%clk 0:03:01.9]}
2... Nc6 {[%clk 0:02:46.7]} 3. d4 {[%clk 0:02:57.7]} 3... cxd4 {[%clk
0:02:48.6]} 4. Nxd4 {[%clk 0:02:59.1]} 4... Nf6 {[%clk 0:02:47.8]} 5. Nc3 {[%clk
0:03:00]} 5... e5 {[%clk 0:02:47.7]} 6. Ndb5 {[%clk 0:02:57.1]} 6... d6 {[%clk
0:02:49.1]} 7. Bg5 {[%clk 0:02:58]} 7... a6 {[%clk 0:02:50.4]} 8. Na3 {[%clk
0:02:57.9]} 8... b5 {[%clk 0:02:52.3]} 9. Bxf6 {[%clk 0:02:59.2]} 9... gxf6
{[%clk 0:02:53.8]} 10. Nd5 {[%clk 0:03:00.4]} 10... f5 {[%clk 0:02:55.5]} 11.
Bd3 {[%clk 0:03:01]} 11... Be6 {[%clk 0:02:56.2]} 12. c3 {[%clk 0:03:02.4]}
12... Bg7 {[%clk 0:02:56.7]} 13. Nxb5 {[%clk 0:02:59.7]} 13... axb5 {[%clk
0:02:57.9]} 14. Bxb5 {[%clk 0:03:01.6]} 14... Bd7 {[%clk 0:02:57.8]} 15. exf5
{[%clk 0:03:00.8]} 15... Nb8 {[%clk 0:02:52.2]} 16. Qg4 {[%clk 0:02:51.9]} 16...
Kf8 {[%clk 0:02:41.4]} 17. Bd3 {[%clk 0:02:28.8]} 17... Bc6 {[%clk 0:02:40.2]}
18. Ne3 {[%clk 0:02:26]} 18... Nd7 {[%clk 0:02:40.4]} 19. O-O {[%clk 0:02:22.6]}
19... Rg8 {[%clk 0:02:31.1]} 20. Qh3 {[%clk 0:02:20.1]} 20... Qg5 {[%clk
0:01:47.9]} 21. g3 {[%clk 0:02:08]} 21... Qh6 {[%clk 0:01:20]} 22. Qg4 {[%clk
0:01:59.2]} 22... Ra4 {[%clk 0:01:06.4]} 23. b4 {[%clk 0:01:51.4]} 23... Bf6
{[%clk 0:01:07.1]} 24. Qe2 {[%clk 0:01:50]} 24... Bg5 {[%clk 0:00:49.7]} 25. Nc4
{[%clk 0:01:35.4]} 25... Bf4 {[%clk 0:00:40.8]} 26. Nb2 {[%clk 0:01:09.1]} 26...
Ra3 {[%clk 0:00:40.2]} 27. b5 {[%clk 0:01:07.2]} 27... Bb7 {[%clk 0:00:39.3]}
28. Nc4 {[%clk 0:01:05.1]} 28... Rxc3 {[%clk 0:00:39.3]} 29. a4 {[%clk
0:01:05.1]} 29... Rxd3 {[%clk 0:00:28.5]} 30. Qxd3 {[%clk 0:00:54.2]} 30... Qh3
{[%clk 0:00:29.4]} 31. Qxd6+ {[%clk 0:00:47.4]} 31... Ke8 {[%clk 0:00:30.8]} 32.
Qc6 {[%clk 0:00:14.1]} 32... Bxc6 {[%clk 0:00:31.9]} 33. bxc6 {[%clk 0:00:16]}
33... Nf6 {[%clk 0:00:31]} 34. Nd6+ {[%clk 0:00:16]} 34... Ke7 {[%clk
0:00:30.8]} 35. Nb5 {[%clk 0:00:13.8]} 35... Ne4 {[%clk 0:00:25.5]} 36. Rfe1
{[%clk 0:00:07.8]} 36... Nxg3 {[%clk 0:00:24.2]} 37. fxg3 {[%clk 0:00:07.3]}
37... Bxg3 {[%clk 0:00:25.3]} 38. Re2 {[%clk 0:00:05.5]} 38... Bh4+ {[%clk
0:00:20.4]} 39. Kh1 {[%clk 0:00:05.3]} 39... Qf3+ {[%clk 0:00:21.5]} 0-1

[Event "***Titled Tuesday 3|2 Blitz"]
[Site "Chess.com"]
[Date "2017.02.07"]
[Round "5"]
[White "kiborg1987"]
[Black "Bad4life"]
[Result "1-0"]
[WhiteElo "2625"]
[BlackElo "2301"]
[TimeControl "180+2"]
[EndTime "14:12:33 PST"]
[Termination "kiborg1987 won by resignation"]

1. e4 {[%clk 0:03:02]} 1... c5 {[%clk 0:03:00.8]} 2. Nf3 {[%clk 0:03:01.6]} 2...
d6 {[%clk 0:03:00.1]} 3. d4 {[%clk 0:03:02.4]} 3... cxd4 {[%clk 0:03:02]} 4.
Nxd4 {[%clk 0:03:04.3]} 4... Nf6 {[%clk 0:03:03.6]} 5. Nc3 {[%clk 0:03:04.8]}
5... g6 {[%clk 0:03:05.2]} 6. Be3 {[%clk 0:03:03.5]} 6... Bg7 {[%clk 0:03:06.6]}
7. Be2 {[%clk 0:03:05.1]} 7... O-O {[%clk 0:03:07.9]} 8. Qd2 {[%clk 0:03:06.6]}
8... Nc6 {[%clk 0:03:09.2]} 9. O-O-O {[%clk 0:03:08]} 9... Nxd4 {[%clk
0:03:01.8]} 10. Bxd4 {[%clk 0:03:09.9]} 10... Be6 {[%clk 0:03:03.5]} 11. Kb1
{[%clk 0:03:07.8]} 11... Qa5 {[%clk 0:02:42.5]} 12. Bxf6 {[%clk 0:03:06.6]}
12... Bxf6 {[%clk 0:02:41.3]} 13. Nd5 {[%clk 0:03:06.6]} 13... Qxd2 {[%clk
0:02:33.2]} 14. Nxf6+ {[%clk 0:03:07.6]} 14... Kg7 {[%clk 0:02:33.5]} 15. Nh5+
{[%clk 0:03:08.9]} 15... gxh5 {[%clk 0:02:28.8]} 16. Rxd2 {[%clk 0:03:10.8]}
16... h4 {[%clk 0:02:26.2]} 17. g3 {[%clk 0:03:11.8]} 17... hxg3 {[%clk
0:02:18.2]} 18. hxg3 {[%clk 0:03:13.7]} 18... Rac8 {[%clk 0:02:14.9]} 19. b3
{[%clk 0:03:11.6]} 19... Rc5 {[%clk 0:02:13.9]} 20. Kb2 {[%clk 0:03:10.6]} 20...
Rfc8 {[%clk 0:02:14.7]} 21. c4 {[%clk 0:03:06.4]} 21... a6 {[%clk 0:02:02.6]}
22. f4 {[%clk 0:03:03.3]} 22... b5 {[%clk 0:01:58.6]} 23. cxb5 {[%clk
0:02:33.3]} 23... axb5 {[%clk 0:01:58.4]} 24. b4 {[%clk 0:02:06.7]} 24... Rc3
{[%clk 0:01:45.9]} 25. Bd3 {[%clk 0:02:07.4]} 25... h6 {[%clk 0:01:28.5]} 26.
Rh5 {[%clk 0:02:00.7]} 26... Bd7 {[%clk 0:01:18.6]} 27. Rd5 {[%clk 0:01:27.8]}
27... Bc6 {[%clk 0:00:49.6]} 28. Kxc3 {[%clk 0:01:13.6]} 28... Bxd5+ {[%clk
0:00:50.6]} 29. Kb2 {[%clk 0:01:15]} 29... Bc4 {[%clk 0:00:45.6]} 30. Rc2 {[%clk
0:01:15.7]} 30... e6 {[%clk 0:00:33.5]} 31. Bxc4 {[%clk 0:01:16]} 31... bxc4
{[%clk 0:00:34.6]} 32. Kc3 {[%clk 0:01:17.2]} 32... d5 {[%clk 0:00:35.7]} 33.
exd5 {[%clk 0:01:17.9]} 33... exd5 {[%clk 0:00:37.3]} 34. Kd4 {[%clk 0:01:15.9]}
34... Rb8 {[%clk 0:00:32.1]} 35. a3 {[%clk 0:01:12.7]} 35... Ra8 {[%clk
0:00:30]} 36. Rc3 {[%clk 0:01:12.7]} 36... Rd8 {[%clk 0:00:25.2]} 37. b5 {[%clk
0:01:13.4]} 37... Rd6 {[%clk 0:00:21.1]} 38. a4 {[%clk 0:01:13.1]} 38... Kf6
{[%clk 0:00:22.1]} 39. a5 {[%clk 0:01:08.9]} 39... Ke7 {[%clk 0:00:23]} 40. a6
{[%clk 0:01:10.3]} 40... Re6 {[%clk 0:00:12.4]} 41. Kxd5 {[%clk 0:01:09.2]}
41... Rb6 {[%clk 0:00:11.7]} 42. Kc5 {[%clk 0:01:10]} 42... Rb8 {[%clk
0:00:12.6]} 43. a7 {[%clk 0:01:10.9]} 43... Rc8+ {[%clk 0:00:12.5]} 44. Kb4
{[%clk 0:01:11.5]} 44... Kf6 {[%clk 0:00:12.3]} 45. Rxc4 {[%clk 0:01:12.8]}
45... Ra8 {[%clk 0:00:13.6]} 46. b6 {[%clk 0:01:13.8]} 46... Kf5 {[%clk
0:00:15.1]} 47. Rc7 {[%clk 0:01:11.5]} 47... f6 {[%clk 0:00:15.9]} 48. Rh7
{[%clk 0:01:12.3]} 48... Kg6 {[%clk 0:00:16.9]} 49. Rc7 {[%clk 0:01:12.5]} 49...
h5 {[%clk 0:00:18.4]} 50. b7 {[%clk 0:01:12.9]} 50... Rxa7 {[%clk 0:00:19.1]}
51. b8=Q {[%clk 0:01:14.4]} 51... Rxc7 {[%clk 0:00:18.6]} 52. Qxc7 {[%clk
0:01:16.3]} 52... Kf5 {[%clk 0:00:20.1]} 53. Qh7+ {[%clk 0:01:17.3]} 53... Kg4
{[%clk 0:00:21.1]} 54. Qg6+ {[%clk 0:01:18.8]} 54... Kf3 {[%clk 0:00:20.7]} 55.
Qxf6 {[%clk 0:01:19.4]} 55... Kxg3 {[%clk 0:00:20.5]} 56. Qg5+ {[%clk
0:01:20.5]} 56... Kf3 {[%clk 0:00:21.7]} 57. f5 {[%clk 0:01:21.9]} 57... h4
{[%clk 0:00:23.2]} 58. Qxh4 {[%clk 0:01:23]} 58... Ke3 {[%clk 0:00:24.4]} 59. f6
{[%clk 0:01:24.5]} 59... Kd3 {[%clk 0:00:26.3]} 60. f7 {[%clk 0:01:25.9]} 60...
Kc2 {[%clk 0:00:28.2]} 61. f8=Q {[%clk 0:01:27.1]} 61... Kb2 {[%clk 0:00:30.1]}
62. Qf3 {[%clk 0:01:28.1]} 62... Kc2 {[%clk 0:00:32]} 63. Qhf2+ {[%clk
0:01:28.8]} 1-0

[Event "***Titled Tuesday 3|2 Blitz"]
[Site "Chess.com"]
[Date "2017.02.07"]
[Round "5"]
[White "pedromartinez91"]
[Black "popov_m"]
[Result "1-0"]
[WhiteElo "2305"]
[BlackElo "2342"]
[TimeControl "180+2"]
[EndTime "14:12:41 PST"]
[Termination "pedromartinez91 won by resignation"]

1. e4 {[%clk 0:03:02]} 1... e6 {[%clk 0:03:00.8]} 2. d4 {[%clk 0:03:01.2]} 2...
d5 {[%clk 0:03:01.1]} 3. Nd2 {[%clk 0:03:02.6]} 3... c5 {[%clk 0:03:01.6]} 4.
exd5 {[%clk 0:03:01]} 4... Qxd5 {[%clk 0:03:03.5]} 5. Ngf3 {[%clk 0:03:01.4]}
5... cxd4 {[%clk 0:03:03.3]} 6. Bc4 {[%clk 0:02:59.6]} 6... Qd7 {[%clk
0:03:04.4]} 7. O-O {[%clk 0:02:58.3]} 7... Nf6 {[%clk 0:03:05.1]} 8. Nb3 {[%clk
0:02:58.6]} 8... Nc6 {[%clk 0:03:06.5]} 9. Nbxd4 {[%clk 0:02:58.8]} 9... Nxd4
{[%clk 0:03:08.4]} 10. Nxd4 {[%clk 0:02:56.4]} 10... a6 {[%clk 0:03:09.2]} 11.
Be2 {[%clk 0:02:56.9]} 11... Bc5 {[%clk 0:02:48.9]} 12. Nb3 {[%clk 0:02:49.5]}
12... Qxd1 {[%clk 0:02:45.9]} 13. Rxd1 {[%clk 0:02:49.8]} 13... Bb6 {[%clk
0:02:43.7]} 14. c4 {[%clk 0:02:31]} 14... Bd7 {[%clk 0:02:39.6]} 15. Bf3 {[%clk
0:02:12.1]} 15... Bc6 {[%clk 0:02:16.8]} 16. Bxc6+ {[%clk 0:02:08.6]} 16... bxc6
{[%clk 0:02:18.7]} 17. c5 {[%clk 0:02:05.7]} 17... Bc7 {[%clk 0:02:17.7]} 18.
Nd4 {[%clk 0:02:04.3]} 18... Nd7 {[%clk 0:01:11.7]} 19. Be3 {[%clk 0:01:42.9]}
19... Nxc5 {[%clk 0:01:01.4]} 20. Rac1 {[%clk 0:01:42.7]} 20... Nd7 {[%clk
0:00:58.3]} 21. Rxc6 {[%clk 0:01:42]} 21... Be5 {[%clk 0:00:58.3]} 22. b3 {[%clk
0:00:41.2]} 22... Ke7 {[%clk 0:00:40.6]} 23. Nf3 {[%clk 0:00:39.2]} 23... Rhc8
{[%clk 0:00:35.6]} 24. Rxd7+ {[%clk 0:00:36.9]} 24... Kxd7 {[%clk 0:00:36.3]}
25. Nxe5+ {[%clk 0:00:37.8]} 25... Ke7 {[%clk 0:00:37.9]} 26. f4 {[%clk
0:00:36.8]} 26... f6 {[%clk 0:00:34.4]} 27. Rxc8 {[%clk 0:00:33]} 27... Rxc8
{[%clk 0:00:36.3]} 28. Nc4 {[%clk 0:00:34.5]} 28... Rd8 {[%clk 0:00:37.6]} 29.
Kf2 {[%clk 0:00:33.9]} 29... Rd1 {[%clk 0:00:38.7]} 30. Ke2 {[%clk 0:00:28.7]}
30... Ra1 {[%clk 0:00:38.3]} 31. a3 {[%clk 0:00:29]} 31... Kd7 {[%clk 0:00:35]}
32. Bd4 {[%clk 0:00:27.2]} 32... Rb1 {[%clk 0:00:29.1]} 33. Bb2 {[%clk
0:00:27.8]} 33... Kc6 {[%clk 0:00:28.9]} 34. h3 {[%clk 0:00:28.2]} 34... Rg1
{[%clk 0:00:23.5]} 35. Ne3 {[%clk 0:00:26.7]} 35... Rb1 {[%clk 0:00:22.2]} 36.
Nd1 {[%clk 0:00:27.5]} 36... Kd5 {[%clk 0:00:18.1]} 37. Kd2 {[%clk 0:00:28.4]}
37... Ke4 {[%clk 0:00:19.2]} 38. Kc2 {[%clk 0:00:29.4]} 38... Rxb2+ {[%clk
0:00:14.1]} 39. Kxb2 {[%clk 0:00:30.1]} 39... Kxf4 {[%clk 0:00:15.8]} 40. b4
{[%clk 0:00:31.2]} 40... Kg3 {[%clk 0:00:15.5]} 41. a4 {[%clk 0:00:32]} 41... f5
{[%clk 0:00:13.7]} 42. b5 {[%clk 0:00:33]} 42... axb5 {[%clk 0:00:15.1]} 43. a5
{[%clk 0:00:34]} 43... Kxg2 {[%clk 0:00:16.7]} 44. a6 {[%clk 0:00:34.7]} 44...
Kxh3 {[%clk 0:00:18.4]} 45. a7 {[%clk 0:00:35.7]} 45... g5 {[%clk 0:00:19.4]}
46. a8=Q {[%clk 0:00:36.2]} 46... g4 {[%clk 0:00:20.7]} 47. Qh1+ {[%clk
0:00:36.4]} 47... Kg3 {[%clk 0:00:21.8]} 48. Kc2 {[%clk 0:00:36.8]} 48... f4
{[%clk 0:00:21.6]} 49. Kd2 {[%clk 0:00:37.8]} 49... b4 {[%clk 0:00:21]} 50. Ke2
{[%clk 0:00:37.8]} 50... b3 {[%clk 0:00:20.2]} 51. Nf2 {[%clk 0:00:38.7]} 1-0

[Event "***Titled Tuesday 3|2 Blitz"]
[Site "Chess.com"]
[Date "2017.02.07"]
[Round "5"]
[White "chessdude"]
[Black "joppie2"]
[Result "1-0"]
[WhiteElo "2437"]
[BlackElo "2520"]
[TimeControl "180+2"]
[EndTime "14:12:44 PST"]
[Termination "chessdude won by checkmate"]

1. e4 {[%clk 0:02:33.7]} 1... e5 {[%clk 0:02:58.7]} 2. Nf3 {[%clk 0:02:33.9]}
2... Nc6 {[%clk 0:02:59]} 3. Bc4 {[%clk 0:02:35.1]} 3... Bc5 {[%clk 0:02:59.4]}
4. O-O {[%clk 0:02:35.4]} 4... Nf6 {[%clk 0:02:58.7]} 5. d3 {[%clk 0:02:37]}
5... d6 {[%clk 0:02:52.8]} 6. h3 {[%clk 0:02:37]} 6... h6 {[%clk 0:02:51.4]} 7.
a4 {[%clk 0:02:37.4]} 7... a6 {[%clk 0:02:52.1]} 8. c3 {[%clk 0:02:38.4]} 8...
Ba7 {[%clk 0:02:53.7]} 9. Na3 {[%clk 0:02:39.7]} 9... g5 {[%clk 0:02:55.2]} 10.
Nc2 {[%clk 0:02:36.5]} 10... g4 {[%clk 0:02:50.7]} 11. hxg4 {[%clk 0:02:27]}
11... Bxg4 {[%clk 0:02:51.3]} 12. Be3 {[%clk 0:02:26.3]} 12... Qd7 {[%clk
0:02:49.3]} 13. Bxa7 {[%clk 0:02:26.8]} 13... Nxa7 {[%clk 0:02:46.6]} 14. Ne3
{[%clk 0:02:28]} 14... Bh5 {[%clk 0:02:47.9]} 15. d4 {[%clk 0:02:21.2]} 15...
Nc6 {[%clk 0:02:46.3]} 16. dxe5 {[%clk 0:02:17]} 16... Nxe4 {[%clk 0:02:39.7]}
17. Nd5 {[%clk 0:01:46.7]} 17... O-O-O {[%clk 0:02:33.4]} 18. Qd3 {[%clk
0:01:42.2]} 18... Nc5 {[%clk 0:02:33.1]} 19. Qe3 {[%clk 0:01:40.9]} 19... Bxf3
{[%clk 0:02:33.7]} 20. Qxf3 {[%clk 0:01:34.8]} 20... Nxe5 {[%clk 0:02:34.7]} 21.
Qe2 {[%clk 0:01:33.5]} 21... Nxc4 {[%clk 0:02:19.7]} 22. Qxc4 {[%clk 0:01:34.1]}
22... Kb8 {[%clk 0:02:07.9]} 23. b4 {[%clk 0:01:35.1]} 23... Ne6 {[%clk
0:02:05.6]} 24. b5 {[%clk 0:01:30]} 24... a5 {[%clk 0:02:06.5]} 25. b6 {[%clk
0:01:28.3]} 25... c6 {[%clk 0:02:02.3]} 26. Ne3 {[%clk 0:01:27.5]} 26... d5
{[%clk 0:02:01.3]} 27. Qh4 {[%clk 0:01:27.8]} 27... Rdg8 {[%clk 0:01:59.8]} 28.
g3 {[%clk 0:01:24.9]} 28... Ng5 {[%clk 0:01:58.6]} 29. Kg2 {[%clk 0:01:24.7]}
29... Ne4 {[%clk 0:01:56.7]} 30. Qf4+ {[%clk 0:01:25.9]} 30... Ka8 {[%clk
0:01:57.6]} 31. c4 {[%clk 0:01:27.4]} 31... h5 {[%clk 0:01:55.9]} 32. cxd5
{[%clk 0:01:28.1]} 32... cxd5 {[%clk 0:01:56.5]} 33. Rac1 {[%clk 0:01:25.5]}
33... h4 {[%clk 0:01:55.6]} 34. Rc7 {[%clk 0:01:25.8]} 34... Qxa4 {[%clk
0:01:36.2]} 35. Rxb7 {[%clk 0:01:20.9]} 35... Kxb7 {[%clk 0:01:24.1]} 36. Qc7+
{[%clk 0:01:19.3]} 36... Ka6 {[%clk 0:01:25.7]} 37. Qa7+ {[%clk 0:01:10.4]}
37... Kb5 {[%clk 0:01:26.3]} 38. Qd7+ {[%clk 0:01:10.9]} 38... Ka6 {[%clk
0:01:23.6]} 39. Qxa4 {[%clk 0:01:06.1]} 39... hxg3 {[%clk 0:01:24.2]} 40. Nxd5
{[%clk 0:00:44.2]} 40... gxf2+ {[%clk 0:01:24.9]} 41. Kf3 {[%clk 0:00:43]} 41...
Rh3+ {[%clk 0:01:25.3]} 42. Ke2 {[%clk 0:00:36.7]} 42... Ng3+ {[%clk 0:01:10.6]}
43. Kxf2 {[%clk 0:00:35.6]} 43... Rh2+ {[%clk 0:01:08.9]} 44. Ke1 {[%clk
0:00:28.5]} 44... Nxf1 {[%clk 0:00:41.7]} 45. Qc6 {[%clk 0:00:14.7]} 45... Rg6
{[%clk 0:00:10.2]} 46. Nc7# {[%clk 0:00:12.1]} 1-0